bitfinex/quotes_ETHUSD_20220112
["timestamp","ask_amount","ask_price","bid_price","bid_amount"]
[1641950352667,1.46867794,3237.1,3236.6,0.00454739]
[1641950353512,1.46867794,3237.1,3236.5,0.00511581]
[1641950353712,1.46867794,3237.1,3236.3,0.00625266]
[1641950354314,1.46867794,3237.1,3236.2,0.00682108]
[1641950354715,1.76867794,3237.1,3236.2,0.00682108]
[1641950354916,1.76867794,3237.1,3236.6,2.63248575]
[1641950355114,2.76867794,3237.1,3236.6,2.63248575]
[1641950355316,2.76867794,3237.1,3236.7,0.00397896]
[1641950355716,0.77261,3236.8,3236.7,0.00397896]
[1641950356315,0.77261,3236.8,3236.1,0.0073895]
[1641950357663,0.77261,3236.8,3236.0,0.00795793]
[1641950358761,0.77261,3236.8,3236.2,2.63254627]
[1641950359166,0.77261,3236.8,3236.3,0.00625266]
[1641950360163,0.77261,3236.8,3236.2,0.00682108]
[1641950360363,0.77261,3236.8,3236.4,2.63254627]
[1641950360565,1.0,3237.0,3236.4,2.93254627]
[1641950360764,1.0,3237.0,3236.5,0.00511581]
[1641950361013,3.24122794,3237.1,3236.5,0.00511581]
[1641950362819,3.24122794,3237.1,3236.2,0.00682108]
[1641950363018,3.24122794,3237.1,3236.6,2.63255209]
[1641950363421,0.80684236,3237.0,3236.7,0.00397896]
[1641950363618,1.80684236,3237.0,3236.7,0.00397896]
[1641950363818,0.77259,3236.9,3236.7,0.00397896]
[1641950364019,1.80684236,3237.0,3236.7,0.00397896]
[1641950364218,0.80684236,3237.0,3236.4,0.00568423]
[1641950364421,1.80684236,3237.0,3236.4,0.00568423]
[1641950364864,1.80684236,3237.0,3236.2,0.00682108]
[1641950365066,4.90684236,3237.0,3236.1,0.0073895]
[1641950365267,4.90684236,3237.0,3236.5,2.63262243]
[1641950365672,5.67944766,3237.0,3236.6,0.00454739]
[1641950365871,0.7726,3236.9,3236.6,0.00454739]
[1641950366072,1.7726,3236.9,3236.6,0.00454739]
[1641950366273,2.0726,3236.9,3236.6,0.00454739]
[1641950366673,2.0726,3236.9,3236.3,0.00625266]
[1641950366873,1.0,3236.9,3236.3,0.00625266]
[1641950367077,0.27769362,3236.7,3236.3,0.00625266]
[1641950367274,0.27769362,3236.7,3236.0,0.00795793]
[1641950367673,0.27769362,3236.7,3236.4,2.63258305]
[1641950367974,0.27769362,3236.7,3236.5,0.00511581]
[1641950369311,0.27769362,3236.7,3236.3,0.00625266]
[1641950370512,0.27769362,3236.7,3236.4,2.63256912]
[1641950370917,0.27769362,3236.7,3236.5,0.00511581]
[1641950372363,0.27769362,3236.7,3236.3,0.00625266]
[1641950372559,0.27769362,3236.7,3236.1,0.0073895]
[1641950373163,0.27769362,3236.7,3236.4,2.63262565]
[1641950373562,0.27769362,3236.7,3236.5,0.00511581]
[1641950374364,0.27769362,3236.7,3236.3,0.00625266]
[1641950374570,5.65,3236.5,3235.6,3.94810043]
[1641950374767,0.77291,3236.1,3235.6,3.94810043]
[1641950374968,2.7,3235.8,3234.9,6.83856265]
[1641950375166,1.45037156,3235.0,3234.9,1.57441564]
[1641950375365,3.37093887,3235.0,3234.9,1.57441564]
[1641950375665,4.37093887,3235.0,3234.9,1.57441564]
[1641950376716,1.92056731,3235.0,3234.7,6.11]
[1641950376919,1.19736731,3235.0,3234.7,6.11]
[1641950377115,2.19736731,3235.0,3234.8,0.00511581]
[1641950377320,1.19736731,3235.0,3234.8,0.00511581]
[1641950377522,2.19736731,3235.0,3234.8,0.00511581]
[1641950377818,1.19736731,3235.0,3234.8,0.00511581]
[1641950378021,2.19736731,3235.0,3234.8,0.00511581]
[1641950378221,2.43853354,3235.0,3234.8,0.00511581]
[1641950378421,3.43853354,3235.0,3234.8,0.00511581]
[1641950381467,0.01489546,3234.9,3234.8,0.00511581]
[1641950381866,0.28890263,3234.9,3234.8,0.00402317]
[1641950386515,5.87810263,3234.9,3234.8,0.00402317]
[1641950386717,5.87810263,3234.9,3234.4,0.00629686]
[1641950386916,0.77322,3234.6,3234.2,0.00743371]
[1641950387164,2.37322,3234.6,3234.2,0.00743371]
[1641950388269,0.77323,3234.4,3234.2,0.00743371]
[1641950388469,0.77323,3234.4,3234.1,0.00800213]
[1641950388670,1.37323,3234.4,3234.1,0.00800213]
[1641950388868,1.07323,3234.4,3234.1,0.00800213]
[1641950389069,2.07323,3234.4,3234.1,0.00800213]
[1641950389870,1.77323,3234.4,3234.1,0.00800213]
[1641950390071,1.53751955,3234.5,3234.1,0.00800213]
[1641950390270,1.83751955,3234.5,3234.1,0.00800213]
[1641950390673,1.53751955,3234.5,3234.1,0.00800213]
[1641950391115,1.5463548,3234.4,3234.1,0.00800213]
[1641950391515,1.56120341,3234.4,3234.1,0.00800213]
[1641950392017,2.86120341,3234.4,3234.1,0.00800213]
[1641950392227,5.7,3234.1,3232.2,5.12988483]
[1641950392425,0.77341,3233.5,3231.6,3.6542]
[1641950392621,0.77341,3233.5,3231.5,3.92530481]
[1641950392622,2.99195476,3233.4,3231.5,3.92530481]
[1641950392820,1.11388557,3232.6,3231.5,3.92530481]
[1641950393124,0.07848684,3232.5,3231.7,0.00341055]
[1641950393321,2.66496577,3232.4,3231.7,0.00341055]
[1641950393520,1.13845122,3231.8,3231.7,0.00341055]
[1641950393720,3.30628102,3231.8,3231.7,0.00341055]
[1641950394121,0.9012,3231.8,3231.7,0.00341055]
[1641950394522,2.35545672,3232.4,3231.7,4.75341055]
[1641950394523,0.80802032,3232.4,3231.7,4.75341055]
[1641950394771,0.00113684,3232.5,3231.7,4.75]
[1641950394970,0.00113684,3232.5,3231.8,0.00284212]
[1641950395572,1.2479155,3232.4,3231.8,0.00284212]
[1641950396173,0.7736428,3232.2,3231.2,0.10753212]
[1641950396371,3.30284212,3232.3,3231.3,0.00284212]
[1641950396572,1.25694354,3231.9,3231.3,0.00284212]
[1641950396773,1.25694354,3231.9,3231.3,2.63887224]
[1641950396975,0.00227369,3232.2,3231.3,2.63887224]
[1641950397176,0.00227369,3232.2,3231.4,0.0022737]
[1641950397378,0.00170527,3232.1,3231.4,0.0022737]
[1641950397879,0.00113685,3232.0,3231.4,0.0022737]
[1641950398281,0.00284212,3232.3,3231.4,0.0022737]
[1641950398517,0.00284212,3232.3,3231.4,1.0968737]
[1641950398718,0.00227369,3232.2,3231.5,0.07735]
[1641950398919,0.00227369,3232.2,3231.5,0.15640527]
[1641950399116,0.01466107,3232.4,3231.6,0.69725685]
[1641950399117,0.00170527,3232.1,3231.6,0.69725685]
[1641950399417,0.01466107,3232.4,3232.0,1.30428862]
[1641950399618,0.01466107,3232.4,3232.0,1.60428862]
[1641950399817,0.00284212,3232.3,3232.0,1.60428862]
[1641950400216,0.00227369,3232.2,3232.0,1.60428862]
[1641950400718,0.00170527,3232.1,3232.0,1.60428862]
[1641950401321,0.00170527,3232.1,3231.6,0.00113685]
[1641950401520,0.00170527,3232.1,3231.7,0.3]
[1641950401722,0.0146423,3232.2,3231.4,0.3022737]
[1641950401723,0.00113685,3232.0,3231.4,0.3022737]
[1641950401921,0.01066334,3232.2,3231.5,4.4]
[1641950402188,0.01066334,3232.2,3231.5,4.40284212]
[1641950402394,0.01066334,3232.2,3231.6,0.0022737]
[1641950402591,0.01066334,3232.2,3231.6,1.46194893]
[1641950402991,0.01066334,3232.2,3231.7,0.00170528]
[1641950403393,0.01066334,3232.2,3232.1,1.4926463]
[1641950403794,0.01180018,3232.2,3232.1,1.4926463]
[1641950404192,0.01180018,3232.2,3232.1,2.71376846]
[1641950404395,0.01180018,3232.2,3232.1,1.4926463]
[1641950405393,0.01180018,3232.2,3232.0,0.3]
[1641950405394,0.01180018,3232.2,3231.8,0.15469]
[1641950405796,0.07735,3232.1,3231.8,0.15469]
[1641950406044,0.08915018,3232.2,3231.8,0.15469]
[1641950406435,0.07848684,3232.2,3231.8,0.15469]
[1641950406832,3.1,3232.1,3231.8,0.07734]
[1641950407129,3.1,3232.1,3231.7,1.62885227]
[1641950407535,3.1,3232.1,3231.8,0.00113685]
[1641950408338,3.1,3232.1,3231.8,2.63690797]
[1641950408935,3.1,3232.1,3231.8,0.00113685]
[1641950409868,3.1,3232.1,3231.8,2.63690797]
[1641950410268,3.1,3232.1,3231.8,2.93690797]
[1641950411674,3.1,3232.1,3231.9,2.63577112]
[1641950412475,3.1,3232.1,3232.0,5.77301786]
[1641950412878,2.90436292,3232.1,3232.0,8.08109644]
[1641950413732,2.90436292,3232.1,3232.0,11.79421756]
[1641950413733,0.90040144,3232.1,3232.0,11.79421756]
[1641950413940,0.07735,3233.3,3232.8,1.3559765]
[1641950414137,0.07735,3233.3,3232.8,2.7793765]
[1641950414337,0.07735,3233.3,3232.9,0.77315]
[1641950414538,0.07731,3233.9,3232.9,0.77315]
[1641950414737,0.07731,3233.9,3232.9,3.63319404]
[1641950414940,0.0869732,3233.9,3232.9,3.63319404]
[1641950415439,0.0869732,3233.9,3233.5,1.23532383]
[1641950416242,0.0869732,3233.9,3233.5,2.03772383]
[1641950416643,1.6334961,3233.9,3233.5,2.03772383]
[1641950417487,4.7334961,3233.9,3233.5,1.23532383]
[1641950417683,0.7731909,3233.8,3233.5,1.23532383]
[1641950417884,0.07731,3233.7,3233.5,1.23532383]
[1641950418084,0.08583635,3233.7,3233.5,1.23532383]
[1641950418285,2.90795793,3233.6,3232.9,2.56624588]
[1641950418485,0.00660691,3233.5,3232.9,2.56624588]
[1641950418685,0.01399642,3233.5,3232.9,2.56624588]
[1641950418883,0.00682108,3233.4,3232.9,2.56624588]
[1641950419089,0.00682108,3233.4,3232.7,1.1401]
[1641950419090,0.01823267,3233.3,3232.7,1.1401]
[1641950419286,0.07731,3233.2,3232.7,1.1401]
[1641950419486,0.00568424,3233.2,3232.9,1.41620227]
[1641950419684,0.00511581,3233.1,3232.9,1.41620227]
[1641950419885,0.00511581,3233.1,3233.0,0.3]
[1641950420084,1.07731,3233.5,3233.0,0.3]
[1641950420586,0.00682108,3233.4,3233.0,0.3]
[1641950420787,0.7733027,3233.2,3233.0,2.93546788]
[1641950421022,0.7733027,3233.2,3233.1,2.3751036]
[1641950421225,0.7733027,3233.2,3233.0,2.93546788]
[1641950421628,0.00511581,3233.1,3233.0,2.93546788]
[1641950422027,0.00511581,3233.1,3233.0,0.3]
[1641950422729,0.00511581,3233.1,3232.5,3.11452424]
[1641950422927,0.7733545,3233.0,3232.5,3.11452424]
[1641950423227,0.00397897,3232.9,3232.5,3.11452424]
[1641950423427,0.00397897,3232.9,3232.8,1.53605327]
[1641950423627,0.7733545,3233.0,3232.8,1.83605327]
[1641950423827,0.7733545,3233.0,3232.8,1.53605327]
[1641950424673,0.7733545,3233.0,3232.5,0.3]
[1641950424866,0.7733545,3233.0,3232.3,3.96971057]
[1641950425066,0.7733545,3233.0,3232.3,2.73471057]
[1641950425667,0.00512485,3232.9,3232.3,0.3]
[1641950425878,0.7733545,3233.0,3232.7,1.53292464]
[1641950426068,0.00341054,3232.8,3232.7,1.53292464]
[1641950428917,0.00341054,3232.8,3232.7,1.83292464]
[1641950429522,0.00341054,3232.8,3232.2,0.69602]
[1641950429721,0.8507005,3232.7,3232.1,0.07732]
[1641950429919,0.85354262,3232.7,3232.0,1.99278685]
[1641950430119,0.0022737,3232.6,3232.0,1.99278685]
[1641950430521,0.00170527,3232.5,3232.4,1.1908178]
[1641950431022,0.00170527,3232.5,3232.4,4.7408178]
[1641950431422,0.00170527,3232.5,3232.4,1.1908178]
[1641950435072,0.00170527,3232.5,3232.4,3.7908178]
[1641950435923,0.00170527,3232.5,3232.4,1.1908178]
[1641950436924,0.00170527,3232.5,3232.4,3.6408178]
[1641950437125,0.00170527,3232.5,3232.4,3.9408178]
[1641950437533,0.00170527,3232.5,3232.4,6.57649587]
[1641950438735,0.00170527,3232.5,3232.4,4.12649587]
[1641950439779,0.00170527,3232.5,3232.4,3.82649587]
[1641950441482,0.00170527,3232.5,3232.4,4.12649587]
[1641950441682,0.00170527,3232.5,3232.4,3.82649587]
[1641950448181,5.7,3232.4,3232.0,1.21841]
[1641950448484,5.7,3232.4,3231.7,5.5846768]
[1641950448485,1.07734,3232.3,3231.7,5.5846768]
[1641950448681,0.02978714,3232.2,3231.7,3.8832768]
[1641950448882,0.01004346,3232.0,3231.8,0.00227369]
[1641950449082,3.87735,3231.9,3231.8,0.00227369]
[1641950449479,1.07735,3231.9,3231.8,0.00227369]
[1641950449682,0.07735,3231.9,3231.7,0.00284212]
[1641950449881,0.851034,3231.9,3231.7,0.00284212]
[1641950451025,0.773684,3231.9,3231.7,0.00284212]
[1641950451227,0.7735426,3232.2,3231.7,0.00284212]
[1641950451626,0.3,3232.1,3231.7,0.00284212]
[1641950451828,0.07735,3232.0,3231.7,0.00284212]
[1641950452029,1.07376,3231.9,3231.7,0.00284212]
[1641950452232,0.7737235,3231.8,3231.7,0.00284212]
[1641950455574,0.7237235,3231.8,3231.7,0.00284212]
[1641950457080,1.0237235,3231.8,3231.7,0.00284212]
[1641950458423,4.1237235,3231.8,3231.7,0.00284212]
[1641950458628,5.1237235,3231.8,3231.7,0.00284212]
[1641950460233,3.8237235,3231.8,3231.7,0.00284212]
[1641950463783,5.1237235,3231.8,3231.7,0.00284212]
[1641950465924,5.1237235,3231.8,3231.2,0.00568423]
[1641950466127,1.5476065,3231.6,3231.2,0.00568423]
[1641950466330,5.71213847,3231.3,3230.2,2.36404256]
[1641950466529,1.4362276,3231.0,3230.2,2.36404256]
[1641950466729,0.77414,3230.7,3230.3,0.00511581]
[1641950466927,0.07738,3230.6,3230.1,1.40421038]
[1641950467131,0.445,3230.5,3230.1,1.40421038]
[1641950467332,0.445,3230.5,3230.2,1.24614291]
[1641950467333,2.3998164,3230.4,3230.2,1.24614291]
[1641950467533,0.3,3230.3,3230.2,1.24614291]
[1641950467932,0.3,3230.3,3230.1,1.40421038]
[1641950467933,1.3,3230.3,3230.1,1.40421038]
[1641950468336,2.0741264,3230.3,3230.1,1.40421038]
[1641950468539,0.07739,3230.4,3230.2,2.87394606]
[1641950468736,0.00113684,3230.5,3230.2,5.51155594]
[1641950469133,0.00113684,3230.5,3230.2,5.81155594]
[1641950469535,0.00113684,3230.5,3230.3,1.25081429]
[1641950469780,0.00113684,3230.5,3230.4,2.59799186]
[1641950469983,0.00113684,3230.5,3230.3,4.18842417]
[1641950470181,0.00113684,3230.5,3230.3,3.88842417]
[1641950470787,0.77513074,3230.5,3230.4,8.10265564]
[1641950470994,0.00113684,3230.5,3230.4,11.49376552]
[1641950471289,0.00113684,3230.5,3230.4,3.46848988]
[1641950472291,0.00113684,3230.5,3230.4,2.71498988]
[1641950472687,0.00113684,3230.5,3230.4,0.07738]
[1641950473824,0.00113684,3230.5,3230.4,2.71454143]
[1641950474823,0.00113684,3230.5,3230.4,0.07738]
[1641950475127,0.00113684,3230.5,3230.3,1.17444094]
[1641950475330,0.00113684,3230.5,3230.4,8.59136794]
[1641950476327,0.00113684,3230.5,3230.4,5.7]
[1641950476528,0.01948187,3230.5,3230.4,5.7]
[1641950476929,0.01948187,3230.5,3230.4,8.3369224]
[1641950477381,0.01948187,3230.5,3229.9,4.9976]
[1641950477586,0.08711578,3230.4,3230.1,1.25428442]
[1641950477783,0.37738,3230.4,3230.1,1.25428442]
[1641950477984,0.30614257,3230.3,3230.1,1.25428442]
[1641950478182,0.07738,3230.2,3230.1,1.25428442]
[1641950478581,0.07738,3230.3,3230.1,2.58398322]
[1641950479785,1.6257084,3230.3,3230.1,2.58398322]
[1641950479988,2.3998984,3230.3,3230.1,2.58398322]
[1641950480186,3.3998984,3230.3,3230.1,2.58398322]
[1641950480930,1.58268856,3230.4,3230.1,2.88398322]
[1641950481535,0.01831685,3230.2,3230.1,2.88398322]
[1641950482939,0.01831685,3230.2,3230.1,5.45572962]
[1641950483337,0.01831685,3230.2,3230.1,2.88398322]
[1641950483538,0.01831685,3230.2,3230.1,5.42925368]
[1641950484538,0.01831685,3230.2,3230.1,5.41280684]
[1641950484776,0.01831685,3230.2,3230.1,2.88398322]
[1641950484976,0.01831685,3230.2,3230.1,5.40985164]
[1641950485179,0.01831685,3230.2,3230.1,2.88398322]
[1641950485578,0.01831685,3230.2,3230.1,5.40828303]
[1641950485880,1.52362541,3230.5,3230.2,5.05]
[1641950486077,1.52362541,3230.5,3230.3,3.4305979]
[1641950486275,1.52362541,3230.5,3230.3,3.80911474]
[1641950486478,1.52362541,3230.5,3230.4,5.39612926]
[1641950486675,1.52362541,3230.5,3230.4,3.04612926]
[1641950488433,1.52362541,3230.5,3230.4,2.61719784]
[1641950488633,1.52362541,3230.5,3230.4,3.06219784]
[1641950495394,1.52362541,3230.5,3230.4,5.61219784]
[1641950496436,5.0976,3231.9,3230.6,5.7]
[1641950496437,0.07738,3231.3,3230.6,5.7]
[1641950496636,0.07738,3231.3,3230.8,0.61892]
[1641950496839,0.00284212,3231.0,3230.9,3.48951002]
[1641950497037,0.00284212,3231.0,3230.9,3.78951002]
[1641950497335,0.08418108,3231.7,3231.6,1.21090624]
[1641950497535,0.08418108,3231.7,3231.6,1.09536623]
[1641950497736,0.07736,3231.7,3231.6,1.09536623]
[1641950497937,1.0,3232.2,3231.6,1.09536623]
[1641950498135,0.07735,3232.1,3231.6,1.09536623]
[1641950498336,0.37735,3232.1,3231.5,1.29745628]
[1641950498534,0.07735,3232.1,3231.5,1.29745628]
[1641950498736,0.7736608,3231.9,3231.5,1.59745628]
[1641950498935,0.07735,3231.8,3231.5,1.59745628]
[1641950499138,0.08473951,3231.8,3231.5,1.59745628]
[1641950499343,0.00682108,3231.7,3231.5,1.59745628]
[1641950499540,0.07735,3231.6,3231.5,1.59745628]
[1641950499777,0.08360266,3231.6,3231.5,1.29745628]
[1641950499975,0.08360266,3231.6,3230.8,1.1429]
[1641950499976,0.00625266,3231.6,3230.9,0.445]
[1641950500178,0.07735,3231.5,3230.9,0.445]
[1641950500376,0.08303424,3231.5,3230.4,4.03273361]
[1641950500578,4.43612627,3232.0,3230.4,4.03273361]
[1641950500579,0.00511581,3231.4,3230.5,0.37736]
[1641950500777,0.07736,3231.3,3230.5,0.3]
[1641950500977,0.08190739,3231.3,3231.0,2.63668152]
[1641950501277,0.00397897,3231.2,3231.0,2.63668152]
[1641950501475,0.07736,3231.1,3231.0,2.63668152]
[1641950501678,0.08077054,3231.1,3231.0,2.63668152]
[1641950501881,0.08077054,3231.1,3231.0,1.13532503]
[1641950503732,0.00341054,3231.1,3231.0,1.13532503]
[1641950504637,0.00341054,3231.1,3231.0,3.77221225]
[1641950505233,0.00341054,3231.1,3231.0,1.13532503]
[1641950506238,0.00341054,3231.1,3231.0,3.77221225]
[1641950507039,0.00341054,3231.1,3231.0,2.47658064]
[1641950508093,0.00341054,3231.1,3231.0,5.11346786]
[1641950508296,2.90341054,3231.1,3231.0,5.11346786]
[1641950509096,0.00341054,3231.1,3231.0,5.11346786]
[1641950509297,0.00341054,3231.1,3231.0,5.31346786]
[1641950509698,0.00341054,3231.1,3231.0,5.61346786]
[1641950512933,0.00341054,3231.1,3231.0,5.31346786]
[1641950520931,0.00341054,3231.1,3231.0,5.61346786]
[1641950521135,0.00341054,3231.1,3231.0,8.36346786]
[1641950521533,0.00341054,3231.1,3231.0,5.61346786]
[1641950524291,0.00341054,3231.1,3231.0,8.27038307]
[1641950526131,0.00341054,3231.1,3231.0,8.07038307]
[1641950529691,0.01225908,3232.4,3231.1,5.7]
[1641950529887,0.07735,3232.5,3231.3,5.59808693]
[1641950530085,0.13819997,3233.0,3231.8,0.00777579]
[1641950530287,3.9205,3233.1,3231.9,0.445]
[1641950530488,0.01023163,3232.9,3232.7,1.47999597]
[1641950530887,0.07427,3233.0,3232.5,1.14857011]
[1641950530888,0.0096632,3232.8,3232.5,1.14857011]
[1641950531089,0.0096632,3232.8,3232.3,0.445]
[1641950531290,0.08182478,3232.7,3232.0,0.445]
[1641950531686,0.08182478,3232.7,3231.6,1.92794407]
[1641950531687,0.00852636,3232.6,3231.6,1.92794407]
[1641950531891,0.00852636,3232.6,3232.0,2.63688722]
[1641950531892,2.3920984,3232.5,3232.0,2.63688722]
[1641950532089,2.70005633,3232.5,3232.0,3.84195155]
[1641950532294,0.00738951,3232.4,3232.0,3.84195155]
[1641950532495,0.07734,3232.3,3232.0,5.11701234]
[1641950532693,0.08416109,3232.3,3232.0,5.11701234]
[1641950532894,0.08416109,3232.3,3232.0,2.48012512]
[1641950532895,0.00625266,3232.2,3232.0,2.48012512]
[1641950533094,0.07734,3232.1,3232.0,2.48012512]
[1641950533295,0.08302424,3232.1,3232.0,2.48012512]
[1641950533531,0.00568424,3232.1,3232.0,2.48012512]
[1641950535844,0.00568424,3232.1,3232.0,1.20506433]
[1641950536042,0.03303424,3232.3,3232.0,1.20506433]
[1641950536240,0.33851626,3232.4,3232.0,1.20506433]
[1641950536439,0.00543507,3232.3,3231.5,0.445]
[1641950536640,0.00657192,3232.3,3231.5,0.445]
[1641950536841,0.7736323,3232.2,3231.6,0.00284212]
[1641950537042,0.07735,3232.1,3231.6,0.00284212]
[1641950537283,1.41189007,3232.0,3231.4,1.43908326]
[1641950537486,1.41189007,3232.0,3231.6,2.63661011]
[1641950537684,0.07735,3231.9,3231.6,2.63661011]
[1641950537884,0.07735,3231.9,3231.7,0.0022737]
[1641950538888,0.07735,3232.0,3231.7,0.0022737]
[1641950539086,0.37735,3232.0,3231.5,0.00341054]
[1641950539287,0.07735,3232.1,3231.5,0.00341054]
[1641950539487,0.00113685,3232.3,3231.5,2.61634718]
[1641950539686,0.00113685,3232.3,3231.7,1.22335898]
[1641950539886,0.00113685,3232.3,3231.9,1.25634151]
[1641950539887,0.07735,3232.2,3231.9,1.25634151]
[1641950540286,0.07735,3232.2,3231.8,0.00170527]
[1641950541231,0.07735,3232.2,3231.8,2.53398382]
[1641950541430,0.00113685,3232.3,3231.8,2.53398382]
[1641950541631,0.00113685,3232.3,3231.9,0.00113685]
[1641950542032,0.00113685,3232.3,3232.0,1.2734689]
[1641950542239,0.00113685,3232.3,3232.1,2.63692109]
[1641950542437,0.00113685,3232.3,3232.2,0.3]
[1641950542643,0.00113685,3232.3,3232.2,4.0047]
[1641950542839,0.00113685,3232.3,3232.2,5.24137366]
[1641950543040,0.00113685,3232.3,3232.2,2.24137366]
[1641950543440,0.00113685,3232.3,3232.2,1.0047]
[1641950543642,0.00113685,3232.3,3232.0,1.2734689]
[1641950544041,0.25966863,3232.4,3232.0,1.2734689]
[1641950544240,0.07734,3232.3,3232.1,0.00113685]
[1641950545482,0.25966863,3232.4,3232.1,0.00113685]
[1641950546285,0.25966863,3232.4,3232.1,1.17539533]
[1641950546683,0.25966863,3232.4,3232.2,0.3]
[1641950547082,0.3,3232.7,3232.2,0.3]
[1641950547290,0.07734,3232.9,3232.3,2.93462303]
[1641950547489,4.60293994,3233.3,3232.8,1.23653037]
[1641950547690,0.65373994,3233.3,3232.3,2.92820626]
[1641950547888,0.00511581,3233.2,3232.3,2.92820626]
[1641950548287,0.00454738,3233.1,3232.3,2.92820626]
[1641950548730,0.77741946,3233.0,3232.5,1.27537767]
[1641950549130,0.00341054,3232.9,3232.5,1.27537767]
[1641950549631,0.7734405,3233.0,3232.5,4.37537767]
[1641950549632,0.00284211,3232.8,3232.5,4.37537767]
[1641950550030,0.00227369,3232.7,3232.5,4.37537767]
[1641950550435,0.00170527,3232.6,3232.5,4.37537767]
[1641950563736,0.00170527,3232.6,3232.5,4.67537767]
[1641950564944,0.00170527,3232.6,3232.5,4.37537767]
[1641950565145,0.00170527,3232.6,3232.5,4.67537767]
[1641950565346,1.80246487,3233.1,3232.5,4.67537767]
[1641950565547,0.80246487,3233.1,3232.5,4.67537767]
[1641950565745,0.00227369,3233.0,3232.5,4.67537767]
[1641950565945,0.07732,3232.9,3232.5,4.67537767]
[1641950566145,0.07902527,3232.9,3232.5,4.67537767]
[1641950566346,0.00113684,3232.8,3232.5,4.67537767]
[1641950568392,0.00113684,3232.8,3232.5,4.37537767]
[1641950569698,0.00113684,3232.8,3232.5,4.67537767]
[1641950570295,0.00113684,3232.8,3232.5,4.37537767]
[1641950570936,0.07845684,3232.8,3232.5,4.67537767]
[1641950571335,0.00113684,3232.8,3232.5,4.67537767]
[1641950576493,0.00113684,3232.8,3232.6,0.02879154]
[1641950576695,0.00113684,3232.8,3232.5,4.67537767]
[1641950579948,0.00113684,3232.8,3232.5,7.09599119]
[1641950580151,0.00113684,3232.8,3232.5,4.67537767]
[1641950581648,0.00113684,3232.8,3232.5,7.12227612]
[1641950582499,0.00113684,3232.8,3232.6,0.445]
[1641950582692,0.00113684,3232.8,3232.7,8.71521032]
[1641950582891,0.00113684,3232.8,3232.7,9.46021032]
[1641950587543,0.00113684,3232.8,3232.7,3.81021032]
[1641950588444,0.00113684,3232.8,3232.7,6.76021032]
[1641950589146,0.00113684,3232.8,3232.7,3.81021032]
[1641950589786,0.00113684,3232.8,3232.7,3.23474343]
[1641950590188,0.00113684,3232.8,3232.7,5.73474343]
[1641950590591,0.00113684,3232.8,3232.7,3.245]
[1641950591393,0.00113684,3232.8,3232.7,5.66737529]
[1641950591791,0.00113684,3232.8,3232.7,3.245]
[1641950592096,0.00113684,3232.8,3232.5,4.37537767]
[1641950592296,0.07732,3232.7,3232.5,4.37537767]
[1641950593294,0.07732,3232.7,3232.5,4.67537767]
[1641950593572,0.07732,3232.7,3232.5,4.37537767]
[1641950595071,0.07732,3232.7,3232.5,4.67537767]
[1641950595373,0.00113684,3232.8,3232.5,4.67537767]
[1641950596275,0.00113684,3232.8,3232.5,7.14991204]
[1641950597077,0.00113684,3232.8,3232.5,4.67537767]
[1641950597494,0.00113684,3232.8,3232.5,7.09684391]
[1641950597693,0.00113684,3232.8,3232.5,4.67537767]
[1641950599495,0.00113684,3232.8,3232.6,2.50242337]
[1641950599794,0.00113684,3232.8,3232.6,3.12105337]
[1641950599996,0.00113684,3232.8,3232.7,5.71222334]
[1641950600196,0.00113684,3232.8,3232.7,6.01222334]
[1641950602548,0.22950726,3233.4,3233.0,0.61853]
[1641950602751,0.22950726,3233.4,3233.1,3.64430018]
[1641950602949,0.00284212,3233.3,3233.1,3.94430018]
[1641950603147,0.00284212,3233.3,3233.2,2.51868684]
[1641950603351,0.22950726,3233.4,3233.2,2.51868684]
[1641950603549,0.22950726,3233.4,3233.3,1.10025706]
[1641950603749,0.22950726,3233.4,3233.3,5.13992632]
[1641950604049,0.2329178,3233.4,3233.3,5.43992632]
[1641950610861,0.2329178,3233.4,3233.3,8.53992632]
[1641950611360,5.169,3234.1,3233.5,0.03636276]
[1641950611564,5.169,3234.1,3233.5,0.745]
[1641950611758,0.0022737,3233.8,3233.5,1.045]
[1641950611960,0.0022737,3233.8,3233.5,0.445]
[1641950612225,0.00170527,3233.7,3233.5,0.445]
[1641950612618,0.00113685,3233.6,3233.5,0.445]
[1641950612821,0.00113685,3233.6,3233.5,1.218]
[1641950613019,0.00341054,3234.0,3233.5,1.218]
[1641950613218,0.00113685,3233.6,3233.5,1.06342]
[1641950613419,0.00284212,3233.9,3233.5,1.78487382]
[1641950613621,0.00113685,3233.6,3233.5,1.33987382]
[1641950613821,0.07731,3233.9,3233.5,1.33987382]
[1641950614019,0.7732362,3233.8,3233.5,1.33987382]
[1641950614520,0.77495527,3233.7,3233.5,1.33987382]
[1641950614919,0.00113685,3233.6,3233.3,3.4]
[1641950616039,0.00113685,3233.6,3233.4,1.15435206]
[1641950618147,0.00886095,3233.6,3233.4,1.15435206]
[1641950618347,0.00113685,3233.6,3233.4,1.15435206]
[1641950623745,0.77439635,3233.6,3233.4,1.15435206]
[1641950624747,0.77439635,3233.6,3233.3,3.1]
[1641950626747,0.77439635,3233.6,3233.3,4.51070424]
[1641950626748,0.00113685,3233.6,3233.3,4.51070424]
[1641950628796,0.00113685,3233.6,3233.3,4.81070424]
[1641950635196,0.00113685,3233.6,3233.3,3.1]
[1641950635398,0.7733,3233.5,3233.3,3.1]
[1641950635802,3.67731,3233.4,3233.3,3.1]
[1641950636198,4.67731,3233.4,3233.3,3.1]
[1641950636399,5.83872478,3233.4,3233.3,3.1]
[1641950636598,2.23872478,3233.4,3233.3,3.1]
[1641950636998,0.07731,3233.4,3233.3,3.1]
[1641950637200,0.00113685,3233.6,3233.3,3.1]
[1641950637604,0.00113685,3233.6,3233.3,3.4]
[1641950639954,0.00113685,3233.6,3233.3,3.1]
[1641950640153,0.00113685,3233.6,3233.3,3.4]
[1641950640353,0.00113685,3233.6,3233.3,3.1]
[1641950640354,0.30113685,3233.6,3233.3,3.1]
[1641950640557,0.85061,3233.5,3233.3,3.1]
[1641950641058,0.7733,3233.5,3233.3,3.1]
[1641950642696,1.0733,3233.5,3233.3,3.1]
[1641950642893,0.7733,3233.5,3233.3,3.1]
[1641950643094,1.54783685,3233.6,3233.3,3.1]
[1641950643295,0.00113685,3233.6,3233.3,3.1]
[1641950644895,1.5464999,3233.7,3233.3,3.1]
[1641950650114,0.77336,3233.5,3233.3,3.1]
[1641950650311,0.85067,3233.5,3233.3,3.1]
[1641950652011,0.77336,3233.5,3233.3,3.1]
[1641950652811,1.07336,3233.5,3233.3,3.1]
[1641950653210,1.15067,3233.5,3233.3,3.1]
[1641950653645,2.15067,3233.5,3233.3,3.1]